[Event "Betsys MČR v online bleskovém šachu 2021"]
[Site "Chess.com"]
[Date "2021.04.17"]
[Round "4"]
[White "Varinius"]
[Black "Rubinus"]
[Result "0-1"]
[WhiteElo "2438"]
[BlackElo "2167"]
[TimeControl "180+1"]
[EndTime "9:38:41 PDT"]
[Termination "Uživatel Rubinus zvítězil po vzdání soupeře"]

1. d4 {[%clk 0:02:54.6]} 1... d5 {[%clk 0:02:59.8]} 2. Nf3 {[%clk 0:02:54.3]}
2... Nc6 {[%clk 0:02:59.2]} 3. e3 {[%clk 0:02:54]} 3... Bg4 {[%clk 0:02:59]} 4.
Bb5 {[%clk 0:02:53.9]} 4... Qd7 {[%clk 0:02:53.9]} 5. h3 {[%clk 0:02:52.7]} 5...
Bxf3 {[%clk 0:02:53.3]} 6. Qxf3 {[%clk 0:02:53.6]} 6... f6 {[%clk 0:02:50]} 7.
c4 {[%clk 0:02:45]} 7... e6 {[%clk 0:02:49.4]} 8. Nc3 {[%clk 0:02:38.9]} 8...
Bb4 {[%clk 0:02:46.9]} 9. O-O {[%clk 0:02:37.4]} 9... Nge7 {[%clk 0:02:46.3]}
10. Bd2 {[%clk 0:02:12.7]} 10... Bxc3 {[%clk 0:02:41.8]} 11. Bxc3 {[%clk
0:02:11.3]} 11... a6 {[%clk 0:02:40.4]} 12. cxd5 {[%clk 0:02:01.4]} 12... Qxd5
{[%clk 0:02:34.4]} 13. Be2 {[%clk 0:01:57.7]} 13... Qxf3 {[%clk 0:02:32.3]} 14.
Bxf3 {[%clk 0:01:57.4]} 14... Kf7 {[%clk 0:02:24.4]} 15. Rac1 {[%clk 0:01:56.1]}
15... Rhd8 {[%clk 0:02:23.4]} 16. a3 {[%clk 0:01:49.6]} 16... Rd7 {[%clk
0:02:23.2]} 17. Rc2 {[%clk 0:01:42.6]} 17... Rb8 {[%clk 0:02:13.8]} 18. Rfc1
{[%clk 0:01:41.8]} 18... g6 {[%clk 0:01:58.1]} 19. Kf1 {[%clk 0:01:40.4]} 19...
h5 {[%clk 0:01:56.2]} 20. Ke2 {[%clk 0:01:39.3]} 20... h4 {[%clk 0:01:52.8]} 21.
Bd2 {[%clk 0:01:36.8]} 21... f5 {[%clk 0:01:44.5]} 22. g3 {[%clk 0:01:17.2]}
22... hxg3 {[%clk 0:01:42.6]} 23. fxg3 {[%clk 0:01:16.8]} 23... Rh8 {[%clk
0:01:42.2]} 24. h4 {[%clk 0:01:16.7]} 24... Kf6 {[%clk 0:01:35.9]} 25. Kf2
{[%clk 0:00:55.8]} 25... Nd5 {[%clk 0:01:26.2]} 26. Rh1 {[%clk 0:00:44.9]} 26...
Rdh7 {[%clk 0:01:21.7]} 27. Rcc1 {[%clk 0:00:34.3]} 27... Ke7 {[%clk 0:01:19.7]}
28. Kg2 {[%clk 0:00:27.6]} 28... Kd6 {[%clk 0:01:15.8]} 29. b3 {[%clk 0:00:18]}
29... Nce7 {[%clk 0:01:12.4]} 30. a4 {[%clk 0:00:16.4]} 30... c6 {[%clk
0:01:10.8]} 31. Rce1 {[%clk 0:00:16.1]} 31... Ng8 {[%clk 0:01:05.1]} 32. e4
{[%clk 0:00:15.1]} 32... Nc7 {[%clk 0:00:57.4]} 33. Bf4+ {[%clk 0:00:13.1]}
33... Kd7 {[%clk 0:00:54.7]} 34. Be5 {[%clk 0:00:13]} 34... Ne7 {[%clk
0:00:53.8]} 35. Bxh8 {[%clk 0:00:12.4]} 35... Rxh8 {[%clk 0:00:54]} 36. exf5
{[%clk 0:00:13]} 36... Nxf5 {[%clk 0:00:51.2]} 37. Bg4 {[%clk 0:00:11.1]} 37...
Nxd4 {[%clk 0:00:45.2]} 38. Rhf1 {[%clk 0:00:10.8]} 38... Ke7 {[%clk 0:00:42.2]}
39. Re5 {[%clk 0:00:08.3]} 39... Nd5 {[%clk 0:00:38.1]} 40. Rfe1 {[%clk
0:00:06.5]} 40... Nf6 {[%clk 0:00:32.2]} 41. Bxe6 {[%clk 0:00:05.5]} 41... Kd6
{[%clk 0:00:29.7]} 42. Bc4 {[%clk 0:00:05.3]} 42... Nd5 {[%clk 0:00:28.6]} 43.
Rg5 {[%clk 0:00:04.4]} 43... Kc5 {[%clk 0:00:27.1]} 44. Bxd5 {[%clk 0:00:04.6]}
44... cxd5 {[%clk 0:00:26]} 45. Rxg6 {[%clk 0:00:04.4]} 45... Nxb3 {[%clk
0:00:25.3]} 46. Rg5 {[%clk 0:00:04.7]} 46... Kc4 {[%clk 0:00:23.7]} 47. h5
{[%clk 0:00:05.2]} 47... d4 {[%clk 0:00:23.6]} 48. Rg4 {[%clk 0:00:05.6]} 48...
Kc3 {[%clk 0:00:23]} 49. Rh4 {[%clk 0:00:04.5]} 49... d3 {[%clk 0:00:22.4]} 50.
Kf3 {[%clk 0:00:03.6]} 50... d2 {[%clk 0:00:22.2]} 51. Rg1 {[%clk 0:00:03.7]}
51... Rf8+ {[%clk 0:00:19.8]} 52. Ke4 {[%clk 0:00:03.6]} 52... Re8+ {[%clk
0:00:19.1]} 53. Kf3 {[%clk 0:00:03.7]} 53... Kc2 {[%clk 0:00:18.9]} 54. Rh2
{[%clk 0:00:03]} 54... Nd4+ {[%clk 0:00:17]} 55. Kf4 {[%clk 0:00:02.7]} 55...
Re1 {[%clk 0:00:15.9]} 56. Rxe1 {[%clk 0:00:02.1]} 56... Ne6+ {[%clk 0:00:10.5]}
57. Kf5 {[%clk 0:00:01.9]} 57... Kc3 {[%clk 0:00:08.7]} 58. Kg6 {[%clk
0:00:02.3]} 58... dxe1=Q {[%clk 0:00:08.2]} 59. Rh4 {[%clk 0:00:02.1]} 59...
Qxg3+ {[%clk 0:00:08]} 60. Kf5 {[%clk 0:00:01.7]} 60... Qxh4 {[%clk 0:00:08]}
61. Kxe6 {[%clk 0:00:02.6]} 61... Qxh5 {[%clk 0:00:08.2]} 62. Kd7 {[%clk
0:00:03.5]} 62... Kb4 {[%clk 0:00:08]} 63. Kc7 {[%clk 0:00:04.4]} 63... Kxa4
{[%clk 0:00:08.5]} 64. Kxb7 {[%clk 0:00:05.2]} 64... a5 {[%clk 0:00:09]} 65. Ka6
{[%clk 0:00:06.1]} 65... Kb4 {[%clk 0:00:08.9]} 66. Kb7 {[%clk 0:00:07]} 66...
Qg6 {[%clk 0:00:08.9]} 0-1

[Event "Betsys MČR v online bleskovém šachu 2021"]
[Site "Chess.com"]
[Date "2021.04.17"]
[Round "4"]
[White "Herracek"]
[Black "DavidekIII"]
[Result "1-0"]
[WhiteElo "2607"]
[BlackElo "2213"]
[TimeControl "180+1"]
[EndTime "9:38:44 PDT"]
[Termination "Uživatel Herracek zvítězil matem"]

1. c4 {[%clk 0:03:00.9]} 1... f5 {[%clk 0:02:55.9]} 2. e4 {[%clk 0:03:00.5]}
2... fxe4 {[%clk 0:02:44]} 3. d3 {[%clk 0:02:59.8]} 3... Nf6 {[%clk 0:02:41.2]}
4. g4 {[%clk 0:02:59.1]} 4... d6 {[%clk 0:02:21.5]} 5. g5 {[%clk 0:02:58.9]}
5... Ng8 {[%clk 0:02:20.5]} 6. Nc3 {[%clk 0:02:57.3]} 6... Bf5 {[%clk
0:02:17.2]} 7. Nge2 {[%clk 0:02:50.7]} 7... e5 {[%clk 0:02:09]} 8. Ng3 {[%clk
0:02:50.3]} 8... Bg6 {[%clk 0:02:08.8]} 9. h4 {[%clk 0:02:49.6]} 9... Be7 {[%clk
0:01:50.3]} 10. h5 {[%clk 0:02:21.3]} 10... Bf7 {[%clk 0:01:48.5]} 11. Ncxe4
{[%clk 0:02:20]} 11... Be6 {[%clk 0:01:44.2]} 12. Be2 {[%clk 0:02:04.6]} 12...
Nc6 {[%clk 0:01:42.7]} 13. Bg4 {[%clk 0:02:04.1]} 13... Qd7 {[%clk 0:01:40.6]}
14. Bxe6 {[%clk 0:02:02.4]} 14... Qxe6 {[%clk 0:01:41.5]} 15. Be3 {[%clk
0:02:02.3]} 15... O-O-O {[%clk 0:01:32.6]} 16. Qa4 {[%clk 0:02:02.1]} 16... Kb8
{[%clk 0:01:29.3]} 17. O-O-O {[%clk 0:01:48.7]} 17... h6 {[%clk 0:01:18.2]} 18.
gxh6 {[%clk 0:01:35.6]} 18... Nxh6 {[%clk 0:01:19.1]} 19. Rhe1 {[%clk
0:01:12.9]} 19... Nf5 {[%clk 0:01:09.5]} 20. Nxf5 {[%clk 0:01:11.2]} 20... Qxf5
{[%clk 0:01:10.4]} 21. Ng3 {[%clk 0:01:08.9]} 21... Qf3 {[%clk 0:01:01.9]} 22.
b4 {[%clk 0:01:02.7]} 22... Bf6 {[%clk 0:00:57.8]} 23. b5 {[%clk 0:00:52.1]}
23... Nd4 {[%clk 0:00:57.2]} 24. Bxd4 {[%clk 0:00:52.2]} 24... exd4 {[%clk
0:00:57.2]} 25. Qc2 {[%clk 0:00:52.4]} 25... Be5 {[%clk 0:00:55.2]} 26. Rg1
{[%clk 0:00:45.6]} 26... Rdf8 {[%clk 0:00:51.5]} 27. Ne4 {[%clk 0:00:24.5]}
27... Rxh5 {[%clk 0:00:45.4]} 28. a4 {[%clk 0:00:20.6]} 28... Qf7 {[%clk
0:00:32.2]} 29. Kb1 {[%clk 0:00:20]} 29... Rf5 {[%clk 0:00:29.3]} 30. Rdf1
{[%clk 0:00:17.9]} 30... Qe6 {[%clk 0:00:21.9]} 31. a5 {[%clk 0:00:18.1]} 31...
Rf3 {[%clk 0:00:21.3]} 32. Ng5 {[%clk 0:00:17.7]} 32... Qf6 {[%clk 0:00:16.2]}
33. Nxf3 {[%clk 0:00:17.2]} 33... Qxf3 {[%clk 0:00:17.1]} 34. a6 {[%clk
0:00:16.9]} 34... b6 {[%clk 0:00:16.6]} 35. Qd1 {[%clk 0:00:15.9]} 35... Qxd1+
{[%clk 0:00:14.9]} 36. Rxd1 {[%clk 0:00:15.8]} 36... Kc8 {[%clk 0:00:11.3]} 37.
Rdf1 {[%clk 0:00:16.1]} 37... Kd7 {[%clk 0:00:11.5]} 38. Kc2 {[%clk 0:00:16.6]}
38... Rf3 {[%clk 0:00:10.3]} 39. Kd2 {[%clk 0:00:16.6]} 39... Ke6 {[%clk
0:00:09.9]} 40. Ke2 {[%clk 0:00:17.2]} 40... Rh3 {[%clk 0:00:09.5]} 41. f4
{[%clk 0:00:17]} 41... Bf6 {[%clk 0:00:08.9]} 42. Rf3 {[%clk 0:00:15.6]} 42...
Rh2+ {[%clk 0:00:08.5]} 43. Rf2 {[%clk 0:00:16.1]} 43... Rh3 {[%clk 0:00:09]}
44. f5+ {[%clk 0:00:15.6]} 44... Kf7 {[%clk 0:00:06.9]} 45. Rg4 {[%clk
0:00:15.4]} 45... Re3+ {[%clk 0:00:06.3]} 46. Kd2 {[%clk 0:00:15.9]} 46... Kg8
{[%clk 0:00:04.3]} 47. Re4 {[%clk 0:00:16]} 47... Rxe4 {[%clk 0:00:04]} 48. dxe4
{[%clk 0:00:16.2]} 48... Kh7 {[%clk 0:00:04.5]} 49. Kd3 {[%clk 0:00:15.6]} 49...
Kg8 {[%clk 0:00:05]} 50. Rh2 {[%clk 0:00:15.9]} 50... Be5 {[%clk 0:00:04.6]} 51.
Rh3 {[%clk 0:00:15.2]} 51... Bf6 {[%clk 0:00:03.8]} 52. Ke2 {[%clk 0:00:15.8]}
52... Be5 {[%clk 0:00:04]} 53. Kf3 {[%clk 0:00:16.4]} 53... Bf6 {[%clk
0:00:04.1]} 54. Kg4 {[%clk 0:00:16.7]} 54... Kf7 {[%clk 0:00:03.7]} 55. Kf4
{[%clk 0:00:16.5]} 55... Be5+ {[%clk 0:00:04.1]} 56. Kg5 {[%clk 0:00:16.9]}
56... Bf6+ {[%clk 0:00:03.1]} 57. Kg4 {[%clk 0:00:17.1]} 57... Be5 {[%clk
0:00:04]} 58. Rh8 {[%clk 0:00:16.7]} 58... Bf6 {[%clk 0:00:04.4]} 59. Rc8 {[%clk
0:00:16.1]} 59... d3 {[%clk 0:00:03.4]} 60. Kf3 {[%clk 0:00:16]} 60... Bd4
{[%clk 0:00:01.8]} 61. Rxc7+ {[%clk 0:00:15.9]} 61... Kf6 {[%clk 0:00:02.2]} 62.
Rxa7 {[%clk 0:00:14.5]} 62... Ke5 {[%clk 0:00:02.2]} 63. Re7+ {[%clk 0:00:14.5]}
63... Kf6 {[%clk 0:00:02.4]} 64. Re6+ {[%clk 0:00:15.4]} 64... Kf7 {[%clk
0:00:02.5]} 65. Rxd6 {[%clk 0:00:16.1]} 65... Bc5 {[%clk 0:00:02.1]} 66. Rxd3
{[%clk 0:00:17]} 66... Kf6 {[%clk 0:00:01.9]} 67. Rd5 {[%clk 0:00:17.9]} 67...
Kg5 {[%clk 0:00:02.8]} 68. Rxc5 {[%clk 0:00:18.3]} 68... bxc5 {[%clk 0:00:02.8]}
69. a7 {[%clk 0:00:19.2]} 69... Kh5 {[%clk 0:00:03]} 70. f6 {[%clk 0:00:20.1]}
70... g6 {[%clk 0:00:03.5]} 71. a8=Q {[%clk 0:00:20]} 71... Kh4 {[%clk
0:00:03.8]} 72. Qd5 {[%clk 0:00:19.7]} 72... g5 {[%clk 0:00:02.5]} 73. Qf5
{[%clk 0:00:19.8]} 73... Kh5 {[%clk 0:00:02.6]} 74. Qh7# {[%clk 0:00:20.2]} 1-0

[Event "Betsys MČR v online bleskovém šachu 2021"]
[Site "Chess.com"]
[Date "2021.04.17"]
[Round "4"]
[White "CZMaster666"]
[Black "Soural_J"]
[Result "0-1"]
[WhiteElo "1857"]
[BlackElo "2168"]
[TimeControl "180+1"]
[EndTime "9:38:54 PDT"]
[Termination "Uživatel Soural_J zvítězil na čas"]

1. e4 {[%clk 0:03:00.9]} 1... c5 {[%clk 0:02:59.3]} 2. Nf3 {[%clk 0:03:00.8]}
2... Nc6 {[%clk 0:02:59.3]} 3. d4 {[%clk 0:03:00]} 3... cxd4 {[%clk 0:02:59.7]}
4. Nxd4 {[%clk 0:02:59.6]} 4... g6 {[%clk 0:03:00.2]} 5. Be2 {[%clk 0:02:58.8]}
5... Bg7 {[%clk 0:02:59.7]} 6. Nb3 {[%clk 0:02:59.4]} 6... Nf6 {[%clk
0:02:58.1]} 7. Nc3 {[%clk 0:03:00]} 7... O-O {[%clk 0:02:57.5]} 8. O-O {[%clk
0:03:00.5]} 8... d6 {[%clk 0:02:57.6]} 9. Bg5 {[%clk 0:03:00.6]} 9... Bd7 {[%clk
0:02:55.2]} 10. f4 {[%clk 0:02:59.8]} 10... Re8 {[%clk 0:02:46.4]} 11. Bc4
{[%clk 0:02:49.9]} 11... Rc8 {[%clk 0:02:38]} 12. Nd2 {[%clk 0:02:31]} 12...
Qb6+ {[%clk 0:02:18.8]} 13. Kh1 {[%clk 0:02:29]} 13... Qxb2 {[%clk 0:02:18.5]}
14. Nd5 {[%clk 0:02:26.5]} 14... Nxe4 {[%clk 0:02:12.4]} 15. Nxe4 {[%clk
0:02:18]} 15... Qxa1 {[%clk 0:02:12.3]} 16. Qxa1 {[%clk 0:02:13.5]} 16... Bxa1
{[%clk 0:02:12.1]} 17. Rxa1 {[%clk 0:02:14.4]} 17... Bf5 {[%clk 0:01:57.6]} 18.
Re1 {[%clk 0:02:05.8]} 18... Kg7 {[%clk 0:01:53.4]} 19. Ng3 {[%clk 0:01:30.4]}
19... Bxc2 {[%clk 0:01:50]} 20. Bb5 {[%clk 0:01:23.9]} 20... f6 {[%clk
0:01:40.4]} 21. Bh4 {[%clk 0:01:23.3]} 21... Kf7 {[%clk 0:01:35.7]} 22. Ne2
{[%clk 0:01:19.5]} 22... a6 {[%clk 0:01:18.1]} 23. Bxc6 {[%clk 0:01:16.9]} 23...
bxc6 {[%clk 0:01:13.6]} 24. Ne3 {[%clk 0:01:14.2]} 24... Bd3 {[%clk 0:01:06.6]}
25. Nd4 {[%clk 0:01:11.5]} 25... c5 {[%clk 0:00:55.8]} 26. Nb3 {[%clk 0:01:11]}
26... e5 {[%clk 0:00:50.5]} 27. Nd5 {[%clk 0:01:00.1]} 27... f5 {[%clk
0:00:41.6]} 28. fxe5 {[%clk 0:00:38.7]} 28... dxe5 {[%clk 0:00:41.4]} 29. Nb6
{[%clk 0:00:38.8]} 29... Rc6 {[%clk 0:00:37.4]} 30. Nd7 {[%clk 0:00:37.4]} 30...
c4 {[%clk 0:00:33.3]} 31. Na5 {[%clk 0:00:35.5]} 31... Rce6 {[%clk 0:00:30.5]}
32. Nb7 {[%clk 0:00:33.9]} 32... e4 {[%clk 0:00:19.5]} 33. Nbc5 {[%clk
0:00:32.1]} 33... Rd6 {[%clk 0:00:16.3]} 34. Bg3 {[%clk 0:00:24.3]} 34... Rd5
{[%clk 0:00:15.5]} 35. Rb1 {[%clk 0:00:20.3]} 35... g5 {[%clk 0:00:14.3]} 36.
Rb6 {[%clk 0:00:20.1]} 36... f4 {[%clk 0:00:12.7]} 37. Rf6+ {[%clk 0:00:20.1]}
37... Kg7 {[%clk 0:00:12.6]} 38. Be1 {[%clk 0:00:20]} 38... Rxc5 {[%clk
0:00:12.5]} 39. Bc3 {[%clk 0:00:18.8]} 39... Rce5 {[%clk 0:00:10]} 40. Rf5
{[%clk 0:00:14.4]} 40... Kg6 {[%clk 0:00:08.5]} 41. Rxe5 {[%clk 0:00:13.7]}
41... Rxe5 {[%clk 0:00:08.4]} 42. Nxe5+ {[%clk 0:00:13.8]} 42... Kf5 {[%clk
0:00:09]} 43. Kg1 {[%clk 0:00:13.9]} 43... e3 {[%clk 0:00:08.3]} 44. g3 {[%clk
0:00:14.1]} 44... Ke4 {[%clk 0:00:06.7]} 45. Kg2 {[%clk 0:00:13.9]} 45... Be2
{[%clk 0:00:04.8]} 46. gxf4 {[%clk 0:00:12.8]} 46... gxf4 {[%clk 0:00:05.1]} 47.
h4 {[%clk 0:00:12.5]} 47... f3+ {[%clk 0:00:05.3]} 48. Kg1 {[%clk 0:00:13]}
48... Bd3 {[%clk 0:00:05.5]} 49. Nxf3 {[%clk 0:00:12.7]} 49... Kxf3 {[%clk
0:00:05.2]} 50. Be1 {[%clk 0:00:10.4]} 50... h5 {[%clk 0:00:05.1]} 51. a4 {[%clk
0:00:10.1]} 51... Ke2 {[%clk 0:00:04.6]} 52. Bb4 {[%clk 0:00:09]} 52... Kd1
{[%clk 0:00:04.1]} 53. Kg2 {[%clk 0:00:09.4]} 53... Kc2 {[%clk 0:00:03.1]} 54.
Kf3 {[%clk 0:00:09.7]} 54... Kb3 {[%clk 0:00:03.1]} 55. Be1 {[%clk 0:00:08.6]}
55... e2 {[%clk 0:00:03.2]} 56. Ke3 {[%clk 0:00:08.6]} 56... Kxa4 {[%clk
0:00:02.8]} 57. Kd2 {[%clk 0:00:08.2]} 57... Kb5 {[%clk 0:00:02.8]} 58. Kc3
{[%clk 0:00:08.5]} 58... a5 {[%clk 0:00:03.1]} 59. Bf2 {[%clk 0:00:08.9]} 59...
a4 {[%clk 0:00:03.3]} 60. Bg3 {[%clk 0:00:09.2]} 60... a3 {[%clk 0:00:03.4]} 61.
Be1 {[%clk 0:00:09.2]} 61... Ka4 {[%clk 0:00:03.6]} 62. Bf2 {[%clk 0:00:07.3]}
62... a2 {[%clk 0:00:03.8]} 63. Kb2 {[%clk 0:00:07.7]} 63... Bb1 {[%clk
0:00:03.9]} 64. Be1 {[%clk 0:00:07]} 64... Kb5 {[%clk 0:00:03.6]} 65. Bc3 {[%clk
0:00:06.2]} 65... Kc6 {[%clk 0:00:03.6]} 66. Kc1 {[%clk 0:00:05.3]} 66... Kd5
{[%clk 0:00:03.8]} 67. Kd2 {[%clk 0:00:05.7]} 67... Ke4 {[%clk 0:00:04]} 68.
Kxe2 {[%clk 0:00:05.7]} 68... Kf4 {[%clk 0:00:02.3]} 69. Bf6 {[%clk 0:00:02.9]}
69... Kg4 {[%clk 0:00:02.4]} 70. Kd2 {[%clk 0:00:01.9]} 70... Kf3 {[%clk
0:00:02.2]} 71. Kc1 {[%clk 0:00:01.2]} 71... Ke2 {[%clk 0:00:02.3]} 0-1

[Event "Betsys MČR v online bleskovém šachu 2021"]
[Site "Chess.com"]
[Date "2021.04.17"]
[Round "4"]
[White "DenisaD2008"]
[Black "DominikS3"]
[Result "0-1"]
[WhiteElo "975"]
[BlackElo "1315"]
[TimeControl "180+1"]
[EndTime "9:38:59 PDT"]
[Termination "Uživatel DominikS3 zvítězil matem"]

1. e4 {[%clk 0:03:00.9]} 1... c6 {[%clk 0:02:59.1]} 2. Nc3 {[%clk 0:02:59.6]}
2... d5 {[%clk 0:02:58.8]} 3. d4 {[%clk 0:02:59.1]} 3... dxe4 {[%clk 0:02:58.2]}
4. Nxe4 {[%clk 0:02:58.8]} 4... Bf5 {[%clk 0:02:58.6]} 5. Nc3 {[%clk 0:02:55.5]}
5... Nf6 {[%clk 0:02:57.2]} 6. Be3 {[%clk 0:02:53.7]} 6... e6 {[%clk 0:02:57]}
7. Nf3 {[%clk 0:02:52.4]} 7... Nbd7 {[%clk 0:02:56.2]} 8. Bd3 {[%clk 0:02:50.4]}
8... Bxd3 {[%clk 0:02:54.9]} 9. Qxd3 {[%clk 0:02:49.4]} 9... Be7 {[%clk
0:02:55.3]} 10. O-O {[%clk 0:02:48.6]} 10... O-O {[%clk 0:02:53.5]} 11. Ng5
{[%clk 0:02:43]} 11... h6 {[%clk 0:02:51.2]} 12. Nge4 {[%clk 0:02:39]} 12...
Nxe4 {[%clk 0:02:47.3]} 13. Nxe4 {[%clk 0:02:38.6]} 13... Nf6 {[%clk 0:02:45]}
14. Ng3 {[%clk 0:02:26.5]} 14... Nd5 {[%clk 0:02:42.1]} 15. Ne4 {[%clk
0:02:22.4]} 15... Nxe3 {[%clk 0:02:40.8]} 16. fxe3 {[%clk 0:02:18.4]} 16... Qc7
{[%clk 0:02:40]} 17. Ng3 {[%clk 0:02:12]} 17... Rfd8 {[%clk 0:02:37]} 18. c3
{[%clk 0:02:09.9]} 18... c5 {[%clk 0:02:34.7]} 19. Qc4 {[%clk 0:02:05.6]} 19...
Rac8 {[%clk 0:02:31.6]} 20. dxc5 {[%clk 0:02:03.7]} 20... Qxc5 {[%clk
0:02:29.5]} 21. Qxc5 {[%clk 0:01:58.7]} 21... Bxc5 {[%clk 0:02:28.9]} 22. Rf3
{[%clk 0:01:50.4]} 22... Rd3 {[%clk 0:02:25.9]} 23. Re1 {[%clk 0:01:44]} 23...
Rcd8 {[%clk 0:02:23.7]} 24. b4 {[%clk 0:01:42.3]} 24... Bb6 {[%clk 0:02:21.7]}
25. a4 {[%clk 0:01:38]} 25... a6 {[%clk 0:02:21]} 26. a5 {[%clk 0:01:36.8]}
26... Ba7 {[%clk 0:02:20.2]} 27. Ne4 {[%clk 0:01:27.1]} 27... Rd1 {[%clk
0:02:16]} 28. Rff1 {[%clk 0:01:24.1]} 28... Rxe1 {[%clk 0:02:07.8]} 29. Rxe1
{[%clk 0:01:22.6]} 29... f5 {[%clk 0:02:05.3]} 30. Ng3 {[%clk 0:01:18.1]} 30...
Rd3 {[%clk 0:01:49.9]} 31. c4 {[%clk 0:01:16.1]} 31... Bxe3+ {[%clk 0:01:45.5]}
32. Kf1 {[%clk 0:01:11.7]} 32... f4 {[%clk 0:01:39.6]} 33. Ne4 {[%clk
0:01:04.3]} 33... Rd4 {[%clk 0:01:31.2]} 34. Nf2 {[%clk 0:00:58.6]} 34... Rxc4
{[%clk 0:01:25.8]} 35. g3 {[%clk 0:00:57.7]} 35... Bxf2 {[%clk 0:01:23.5]} 36.
Kxf2 {[%clk 0:00:56.3]} 36... fxg3+ {[%clk 0:01:21.5]} 37. Kxg3 {[%clk
0:00:55.7]} 37... Rc6 {[%clk 0:01:20.6]} 38. h4 {[%clk 0:00:51.6]} 38... Kf7
{[%clk 0:01:18.4]} 39. Kg4 {[%clk 0:00:51.2]} 39... g6 {[%clk 0:01:15]} 40. Kf4
{[%clk 0:00:49.6]} 40... Rc4+ {[%clk 0:01:10.9]} 41. Kg3 {[%clk 0:00:43.7]}
41... Rxb4 {[%clk 0:01:09.5]} 42. Kh3 {[%clk 0:00:40.7]} 42... Rb5 {[%clk
0:01:03.1]} 43. Rf1+ {[%clk 0:00:39.7]} 43... Kg7 {[%clk 0:01:00.9]} 44. Re1
{[%clk 0:00:37.9]} 44... e5 {[%clk 0:00:59.3]} 45. Kg4 {[%clk 0:00:35.6]} 45...
Rxa5 {[%clk 0:00:57.3]} 46. Kf3 {[%clk 0:00:32.9]} 46... Kf6 {[%clk 0:00:53.7]}
47. Kg3 {[%clk 0:00:28]} 47... Ra3+ {[%clk 0:00:50.5]} 48. Kg4 {[%clk
0:00:26.3]} 48... Ra4+ {[%clk 0:00:49.7]} 49. Kf3 {[%clk 0:00:24.2]} 49... Kf5
{[%clk 0:00:48.7]} 50. Kg2 {[%clk 0:00:21.1]} 50... g5 {[%clk 0:00:42.5]} 51.
Rf1+ {[%clk 0:00:18.7]} 51... Kg6 {[%clk 0:00:39.8]} 52. hxg5 {[%clk 0:00:18.1]}
52... hxg5 {[%clk 0:00:38.6]} 53. Kg3 {[%clk 0:00:18.5]} 53... b5 {[%clk
0:00:32.7]} 54. Rb1 {[%clk 0:00:17.7]} 54... Rf4 {[%clk 0:00:28.6]} 55. Re1
{[%clk 0:00:16]} 55... Kf5 {[%clk 0:00:26.5]} 56. Kg2 {[%clk 0:00:14.4]} 56...
a5 {[%clk 0:00:24.4]} 57. Rc1 {[%clk 0:00:12.1]} 57... a4 {[%clk 0:00:21.6]} 58.
Rc3 {[%clk 0:00:11.1]} 58... b4 {[%clk 0:00:20.1]} 59. Rc2 {[%clk 0:00:09.6]}
59... b3 {[%clk 0:00:19.1]} 60. Rb2 {[%clk 0:00:08.3]} 60... Rb4 {[%clk
0:00:17.9]} 61. Rb1 {[%clk 0:00:07.5]} 61... a3 {[%clk 0:00:17.7]} 62. Rf1+
{[%clk 0:00:06.8]} 62... Kg6 {[%clk 0:00:16.1]} 63. Rb1 {[%clk 0:00:06.1]} 63...
a2 {[%clk 0:00:14.8]} 64. Ra1 {[%clk 0:00:04.8]} 64... b2 {[%clk 0:00:12.8]} 65.
Rxa2 {[%clk 0:00:05.2]} 65... b1=Q {[%clk 0:00:12.9]} 66. Kf3 {[%clk 0:00:04.1]}
66... Kf5 {[%clk 0:00:11.1]} 67. Ke3 {[%clk 0:00:03.8]} 67... Qxa2 {[%clk
0:00:08.9]} 68. Kd3 {[%clk 0:00:02.5]} 68... Qa3+ {[%clk 0:00:08.9]} 69. Kc2
{[%clk 0:00:01.8]} 69... Rb2+ {[%clk 0:00:09.8]} 70. Kc1 {[%clk 0:00:01.5]}
70... Qa1# {[%clk 0:00:10.7]} 0-1